Workbook

Sheet Disclaimer
A1: DISCLAIMER
A3: This document contains forward-looking statements regarding intention, expectations or estimates of the Company or its management at the date of issue thereof, relating to various aspects, including the growth of various lines of business and the business overall, the market share, the results of the Company and other aspects of the activity and status thereof. Analysts and investors should bear in mind that such estimates do not amount to any warranty as to the future behaviour or results of the Company, and they shall bear all risks and uncertainties with regard to relevant aspects, and thus, the real future results and behaviour of the Company might be substantially different from what is stated in the said predictions or estimates. | B3: The statements in this statement should be taken into account by any persons or entities who may have to make decisions or prepare or disseminate opinions on securities issued by the Company and, in particular, by the analysts who handle this document. All are invited to consult the documentation and information published or registered by the Company before the National Securities Market Commission. The financial information contained in this document has been prepared under International Financial Reporting Standards (IFRS). This financial information is unaudited and, therefore, is subject to potential future modifications. This document is only provided for information purposes and does not constitute, nor may it be interpreted as, an offer to sell or exchange or acquire, or solicitation for offers to purchase or accept any kind of compromise.

Sheet P&L
A1: CONSOLIDATED PROFIT AND LOSS ACCOUNT
A3: Thousand Euro | B3: IFRS
B4: 1H21 | C4: 1H20 | D4: Var Abs | E4: Var %
A5: Circulation revenues | B5: 57348.02596 | C5: 59184.43369 | D5: -1836.40773 | E5: -0.03102855963
A6: Advertising revenues | B6: 68964.76859 | C6: 65192.47638 | D6: 3772.292209 | E6: 0.05786391956
A7: Other revenues | B7: 42261.43992 | C7: 39319.37613 | D7: 2942.06379 | E7: 0.07482478309
A8: Total revenue | B8: 168574.2345 | C8: 163696.2862 | D8: 4877.948269 | E8: 0.02979877175
A9: Staff costs | B9: -72343.45639 | C9: -72469.99078 | D9: 126.5343853 | E9: 0.001746024582
A10: Procurements | B10: -12455.27067 | C10: -13232.06662 | D10: 776.79595 | E10: 0.05870556522
A11: External Services | B11: -66737.70908 | C11: -70377.19421 | D11: 3639.485127 | E11: 0.05171398445
A12: Provisions | B12: -1078.40641 | C12: -1042.70235 | D12: -35.70406 | E12: -0.03424185243
A13: Operating expenses (without D&A) | B13: -152614.8426 | C13: -157121.954 | D13: 4507.111402 | E13: 0.02868543376
A14: EBITDA | B14: 15959.39191 | C14: 6574.33224 | D14: 9385.059671 | E14: n.r.
A15: Depreciation and amortization | B15: -9839.391345 | C15: -9771.13305 | D15: -68.25829492 | E15: -0.00698570929
A16: Impairment/gains on disposal of tan. & intan. assets | B16: 10699.15198 | C16: 56.30446 | D16: 10642.84752 | E16: n.r.
A17: EBIT | B17: 16819.15255 | C17: -3140.49635 | D17: 19959.6489 | E17: n.r.
A18: Impairments/reversal of other intangible assets | B18: -1000 | C18: -4007 | D18: 3007 | E18: 0.7504367357
A19: Profit of companies acc. equity method | B19: -207.2406858 | C19: 346.40391 | D19: -553.6445958 | E19: n.r.
A20: Net financial income | B20: -1173.095363 | C20: -1296.20064 | D20: 123.1052767 | E20: 0.09497393607
A21: Net gains on disposal of non- current assets | B21: -922.37131 | C21: -248.45833 | D21: -673.91298 | E21: n.r.
A22: Profit before taxes | B22: 13516.44519 | C22: -8345.75141 | D22: 21862.1966 | E22: n.r.
A23: Corporation tax | B23: -3268.95138 | C23: -758.97764 | D23: -2509.97374 | E23: n.r.
A24: Net profit for the year | B24: 10247.49381 | C24: -9104.72906 | D24: 19352.22287 | E24: n.r.
A25: Minority interests | B25: -4599.926628 | C25: -2070.7808 | D25: -2529.145828 | E25: n.r.
A26: Net profit attributable to the parent | B26: 5647.567179 | C26: -11175.50986 | D26: 16823.07704 | E26: n.r.
A28: Staff costs ex non recurring costs | B28: -72343.45639 | C28: -68144.48757 | D28: -4198.968825 | E28: -0.06161861325
A29: Operating Expenses ex non recurring costs | B29: -152614.8426 | C29: -152796.4508 | D29: 181.6081921 | E29: 0.001188562897
A30: Comparable EBITDA | B30: 15959.39191 | C30: 10899.83545 | D30: 5059.556461 | E30: 0.4641864993

Sheet Balance Sheet
A1: CONSOLIDATED BALANCE SHEETS
A3: Thousand Euro | B3: IFRS | F3: Thousand Euro | G3: IFRS
B4: 1H21 | C4: 2020 | D4: Var abs | G4: 1H21 | H4: 2020 | I4: Var abs
A5: ASSETS | F5: EQUITY AND LIABILITIES
A6: NON CURRENT ASSETS | F6: EQUITY
A7: Intangible assets | B7: 143527.1111 | C7: 146305.8139 | D7: -2778.702859 | F7: Of the Parent | G7: 197116.699 | H7: 191734.4796 | I7: 5382.219396
A8: Goodwill | B8: 93568.01461 | C8: 94014 | D8: -446 | F8: Share capital | G8: 24863.94861 | H8: 24994.06121 | I8: -130.1126
A9: Intangible assets | B9: 49959.09645 | C9: 51381.87651 | D9: -1422.78006 | F9: Reserves | G9: 175006.7112 | H9: 199035.0067 | I9: -24028.29548
A10: Property, plant and equipment | B10: 96832.44857 | C10: 98344.86595 | D10: -1512.41738 | F10: Treasury shares | G10: -8401.528 | H10: -10541.96343 | I10: 2140.43543
A11: Use of leases | B11: 18604.82731 | C11: 19618.96929 | D11: -1014.14198 | F11: Net profit for the year
A12: Investments accounted for using the equity method | B12: 4463.479702 | C12: 17121.3559 | D12: -12657.8762 | F12: Of minority interest | G12: 5647.567179 | H12: -21752.62487 | I12: 27400.19205
A13: Financial assets | B13: 3720.907285 | C13: 3693.509965 | D13: 27.39732 | G13: 65326.35337 | H13: 64522.81648 | I13: 803.5368858
A14: Non-current investment securities | B14: 2641.55603 | C14: 2641.90704 | D14: -0.35101
A15: Other non current financial assets | B15: 1079.351255 | C15: 1051.602925 | D15: 27.74833 | F15: NON CURRENT LIABILITIES
A16: Other non current receivables | B16: 5788.887152 | C16: 2236.241953 | D16: 3552.645199 | F16: Deferred income | G16: 19.79547 | H16: 51.16766 | I16: -31.37219
A17: Deferred tax assets | B17: 53603.69695 | C17: 55333.00827 | D17: -1729.31132 | F17: Provisions | G17: 1401.69797 | H17: 1197.81313 | I17: 203.88484
B18: 326897.2808 | C18: 342653.7653 | D18: -15756.48442 | F18: Bank borrowings and other financial liabilities | G18: 48685.27345 | H18: 53695.67317 | I18: -5010.39972
A19: CURRENT ASSETS | F19: Other non-current payables | G19: 17160.58774 | H19: 15416.92649 | I19: 1743.661253
A20: Inventories | B20: 15885.41235 | C20: 19149.432 | D20: -3264.01965 | F20: Deferred tax liabilities | G20: 11638.34323 | H20: 10958.66831 | I20: 679.67492
A21: Trade and other receivables | B21: 70893.47381 | C21: 79073.41778 | D21: -8179.94397 | G21: 78905.69786 | H21: 81320.24876 | I21: -2414.550897
A22: Tax receivables | B22: 2503.842665 | C22: 3440.006315 | D22: -936.16365 | F22: CURRENT LIABILITIES
A23: Cash and cash equivalents | B23: 39222.82782 | C23: 25065.33269 | D23: 14157.49514 | F23: Bank borrowings and other financial liabilities | G23: 27838.35501 | H23: 39026.64987 | I23: -11188.29486
B24: 128505.5566 | C24: 126728.1888 | D24: 1777.367866 | F24: Trade and other payables | G24: 73426.91643 | H24: 86700.01519 | I24: -13273.09876
F25: Tax payables | G25: 14198.81662 | H25: 13160.41859 | I25: 1038.398033
A26: Assets held for sale and discontinued operations | B26: 1410.00054 | C26: 7082.67457 | D26: -5672.67403 | G26: 115464.0881 | H26: 138887.0837 | I26: -23422.99558
A28: TOTAL ASSETS | B28: 456812.838 | C28: 476464.6286 | D28: -19651.79059 | F28: TOTAL EQUITY AND LIABILITIES | G28: 456812.8383 | H28: 476464.6285 | I28: -19651.7902

Sheet Net Debt
A1: NET DEBT
A3: Thousand Euro | B3: IFRS
B4: 1S21 | C4: 2020 | D4: Var Abs | E4: Var %
A6: Bank borrowings and other financial liabilities (s.t.) | B6: 27838.35501 | C6: 39026.64987 | D6: -11188.29486 | E6: -0.2866834559
A7: Bank borrowings and other financial liabilities (l.t.) | B7: 48685.27345 | C7: 53695.67317 | D7: -5010.39972 | E7: -0.09331105141
A8: Gross debt | B8: 76523.62847 | C8: 92722.32304 | D8: -16198.69458 | E8: -0.1747011296
A9: + Cash and cash equivalents | B9: 39330.44682 | C9: 25175.23869 | D9: 14155.20814 | E9: 0.5622670876
A10: + Other non current financial asstes | B10: 1059.009673 | C10: 1599.205482 | D10: -540.1958083 | E10: -0.337790118
A11: Deferred expenses | B11: 707.18681 | C11: 1331.90036 | D11: -624.71355 | E11: -0.4690392531
A12: Net cash position/ (net debt) | B12: -36841.35878 | C12: -67279.77923 | D12: 30438.42045 | E12: 0.4524155816
A13: OW Leases | B13: 19721

Sheet CashFlow
A1: CASH FLOW STATEMENT
A3: Thousand Euro | B3: IFRS
B4: 1H21 | C4: 1H20 | D4: Var Abs | E4: % Var
A6: Net profit attibutable to the parent | B6: 5647.567179 | C6: -11175.50985 | D6: 16823.07703 | E6: n.r.
A7: Adjustments to net profit | B7: 11615.23114 | C7: 18813.04444 | D7: -7197.813298 | E7: -0.3825969434
A8: Cash flows from ordinary operating activities before changes in working capital | B8: 17262.79832 | C8: 7637.53459 | D8: 9625.263731 | E8: n.r.
A9: Changes in working capital & others | B9: 7300.238166 | C9: 4923.22958 | D9: 2377.008586 | E9: 0.4828148977
A10: Other payables | B10: -2240.446639 | C10: 1262.42924 | D10: -3792.144879 | E10: n.r.
A11: Income tax paid | B11: -621.7799 | C11: -718.316 | D11: 96.5361 | E11: 0.1343922452
A12: Interests deduction for tax purposes | B12: -804.22294 | C12: -898.56384 | D12: 94.3409 | E12: 0.1049907595
A13: Net cash flow from operating activities (I) | B13: 20896.58701 | C13: 12206 | D13: 8690 | E13: 0.712
A14: Acquisitions of intangible and property, plan and equipment | B14: -10380.15809 | C14: -7072.39523 | D14: -3307.762859 | E14: -0.4677005104
A15: Acquisitions of financial assets, subsidiaries and associates | B15: 23682 | C15: -1117.97222 | D15: 24800 | E15: n.r.
A16: Interests and dividends received | B16: 124.2234567 | C16: 283.21541 | D16: -158.9919533 | E16: -0.5613817176
A17: Other receivables and payables (investing) | B17: 610 | C17: 955.68386 | D17: -345.68386 | E17: -0.361713611
A18: Net cash flow from investing activities (II) | B18: 14035.88582 | C18: -6951.46818 | D18: 20987 | E18: n.r.
A19: Interests and dividends paid | B19: -3331.082448 | C19: -3420.56587 | D19: 89.48342151 | E19: 0.02616041465
A20: Cash inflows/ (outflows) relating to bank borrowings | B20: -5892.27092 | C20: 149.96688 | D20: -6042.2378 | E20: n.r.
A21: Other receivables and payables (financing) | B21: -11487.9134 | C21: 3723.72216 | D21: -15211.63556 | E21: n.r.
A22: Equity related instruments without financial cost | B22: 0 | C22: 0 | D22: 0 | E22: n.a.
A23: Equity related instruments with financial cost | B23: -66 | C23: 0 | D23: -66 | E23: n.a.
A24: Net cash flows from financing activities (III) | B24: -20777.26677 | C24: 453.12317 | D24: -21230.38994 | E24: n.r.
A25: Net increase in cash and cash equivalents (I + II + III) | B25: 14155.20606 | C25: 5707.96856 | D25: 8447.237499 | E25: n.r.
A26: Cash and cash equivalents from acquired companies | B26: 0 | C26: 0 | D26: 0 | E26: n.a.
A27: Cash and cash equivalents of discounted operations | B27: 0 | C27: 0 | D27: 0 | E27: n.a.
A28: Cash and cash equivalents at beginning of the year | B28: 25175.23808 | C28: 17696.40065 | D28: 7478.837426 | E28: 0.4226191288
A29: Cash and cash equivalents at end of year | B29: 39330.44593 | C29: 23404.36921 | D29: 15926.07672 | E29: 0.680474512

Sheet CAPEX
A1: CAPEX: (Additions to PPE and intangible assets)
A3: Thousand Euro | B3: IFRS
B4: 1H21 | E4: 1H20 | F4: 1S20 | H4: Var Abs
B5: Inmat. | C5: Mat. | D5: Total | E5: Inmat. | F5: Mat. | G5: Total | H5: Inmat. | I5: Mat. | J5: Total
A6: Newspapers | B6: 2395.75 | C6: 3582.925 | D6: 5978.675 | E6: 2241.824859 | F6: 4030.654 | G6: 6272.478859 | H6: 153.9251413 | I6: -447.729 | J6: -293.8038587
A7: Audiovisual | B7: 0.5485886301 | C7: 0 | D7: 0.5485886301 | E7: 1.983595824 | F7: 24.059 | G7: 26.04259582 | H7: -1.435007194 | I7: -24.059 | J7: -25.49400719
A8: Classified | B8: 172.238 | C8: 16.059 | D8: 188.297 | E8: 120.7817376 | F8: 38.012 | G8: 158.7937376 | H8: 51.45626244 | I8: -21.953 | J8: 29.50326244
A9: Gastronomy & Others | B9: 48.369 | C9: 8.344 | D9: 56.713 | E9: 5.458158877 | F9: 25.469 | G9: 30.92715888 | H9: 42.91084112 | I9: -17.125 | J9: 25.78584112
A10: Corporate | B10: 126.3089037 | C10: 19.117 | D10: 145.4259037 | E10: 141.6524491 | F10: 72.897 | G10: 214.5494491 | H10: -15.34354536 | I10: -53.78 | J10: -69.12354536
A11: TOTAL | B11: 2743.214492 | C11: 3626.445 | D11: 6369.659492 | E11: 2511.7008 | F11: 4191.091 | G11: 6702.7918 | H11: 231.5136924 | I11: -564.646 | J11: -333.1323076

Sheet Line of Activity
A1: LINE OF ACTIVITY
A3: Thousand Euro | B3: IFRS | G3: IFRS
B4: 1Q21 | C4: 1Q20 | D4: Var Abs | E4: Var % | G4: 1H21 | H4: 1H20 | I4: Var Abs | J4: Var %
A6: Circulation Revenues
A7: Newpapers | B7: 28835.24968 | C7: 31149.01333 | D7: -2313.76365 | E7: -0.07428047963 | G7: 57348.1221 | H7: 59184.43369 | I7: -1836.31159 | J7: -0.03102693522
A8: Audiovisual | B8: 0 | C8: 0 | D8: 0 | E8: n.a. | G8: 0 | H8: 0 | I8: 0 | J8: n.a.
A9: Classified | B9: 0 | C9: 0 | D9: 0 | E9: n.a. | G9: 0 | H9: 0 | I9: 0 | J9: n.a.
A10: Gastronomy and Agencies | B10: 0 | C10: 0 | D10: 0 | E10: n.a. | G10: 0 | H10: 0 | I10: 0 | J10: n.a.
A11: Corporate and adjustments | B11: 0 | C11: 0 | D11: 0 | E11: 0 | G11: -0.09614 | H11: 0 | I11: -0.09614 | J11: n.a.
A12: Total Circulation Revenues | B12: 28835.24968 | C12: 31149.01333 | D12: -2313.76365 | E12: -0.07428047963 | G12: 57348.02596 | H12: 59184.43369 | I12: -1836.40773 | J12: -0.03102855963
A14: Advertising Revenues
A15: Newpapers | B15: 24625.90333 | C15: 27528.62879 | D15: -2902.725462 | E15: -0.1054438811 | G15: 56489.45447 | H15: 53864.10341 | I15: 2625.351059 | J15: 0.04874027214
A16: Audiovisual | B16: 470.64045 | C16: 757.71474 | D16: -287.07429 | E16: -0.3788685568 | G16: 906.47235 | H16: 1137.98997 | I16: -231.51762 | J16: -0.2034443414
A17: Classified | B17: 5606.84045 | C17: 6301.57446 | D17: -694.73401 | E17: -0.1102476872 | G17: 11524.0452 | H17: 10176.77164 | I17: 1347.27356 | J17: 0.132387127
A18: Gastronomy and Agencies | B18: 0 | C18: 2.45 | D18: -2.45 | E18: -1 | G18: 133.32678 | H18: 2.45 | I18: 130.87678 | J18: n.s.
A19: Corporate and adjustments | B19: -22.03005 | C19: -9.55806 | D19: -12.47199 | E19: n.r. | G19: -88.53021 | H19: 11.16136 | I19: -99.69157 | J19: n.r.
A20: Total Advertising Revenues | B20: 30681.35418 | C20: 34580.80993 | D20: -3899.455752 | E20: -0.1127635749 | G20: 68964.76859 | H20: 65192.47638 | I20: 3772.292209 | J20: 0.05786391956
A22: Other Revenues
A23: Newpapers | B23: 9530.996225 | C23: 10533.45773 | D23: -1002.461505 | E23: -0.09516927211 | G23: 20434.97571 | H23: 19135.17262 | I23: 1299.80309 | J23: 0.06792742955
A24: Audiovisual | B24: 7006.00368 | C24: 7788.74541 | D24: -782.74173 | E24: -0.1004965099 | G24: 13731.04195 | H24: 14088.50199 | I24: -357.46004 | J24: -0.02537246616
A25: Classified | B25: 356.76341 | C25: 351.33073 | D25: 5.43268 | E25: 0.01546315063 | G25: 683.22883 | H25: 630.16903 | I25: 53.0598 | J25: 0.08419931395
A26: Gastronomy and Agencies | B26: 2920.77082 | C26: 5967.62495 | D26: -3046.85413 | E26: -0.5105639439 | G26: 9436.76603 | H26: 7398.31523 | I26: 2038.4508 | J26: 0.2755290545
A27: Corporate and adjustments | B27: -939.484255 | C27: -1090.64542 | D27: 151.161165 | E27: 0.004751404624 | G27: -2024.5726 | H27: -1932.78274 | I27: -91.78986 | J27: -0.01546805458
A28: Total Other Revenues | B28: 18875.04988 | C28: 23550.5134 | D28: -4675.46352 | E28: -0.1985291548 | G28: 42261.43992 | H28: 39319.37613 | I28: 2942.06379 | J28: 0.07482478309
A30: Total Revenues
A31: Newpapers | B31: 62992.14923 | C31: 69211.09985 | D31: -6218.950617 | E31: -0.08985481564 | G31: 134272.5523 | H31: 132183.7097 | I31: 2088.842559 | J31: 0.01580257176
A32: Audiovisual | B32: 7476.64413 | C32: 8546.46015 | D32: -1069.81602 | E32: -0.125176506 | G32: 14637.5143 | H32: 15226.49196 | I32: -588.97766 | J32: -0.03868111326
A33: Classified | B33: 5963.60386 | C33: 6652.90519 | D33: -689.30133 | E33: -0.1036090716 | G33: 12207.27403 | H33: 10806.94067 | I33: 1400.33336 | J33: 0.1295772229
A34: Gastronomy and Agencies | B34: 2920.77082 | C34: 5970.07495 | D34: -3049.30413 | E34: -0.5107647987 | G34: 9570.09281 | H34: 7400.76523 | I34: 2169.32758 | J34: 0.2931220641
A35: Corporate and adjustments | B35: -961.514305 | C35: -1100.20348 | D35: 138.689175 | E35: 0.1260577498 | G35: -2113.19895 | H35: -1921.62138 | I35: -191.57757 | J35: -0.09969579439
A36: Total Revenues | B36: 78391.65374 | C36: 89280.33666 | D36: -10888.68292 | E36: -0.1219605943 | G36: 168574.2345 | H36: 163696.2862 | I36: 4877.948269 | J36: 0.02979877175
A38: EBITDA
A39: Newpapers | B39: 3142.943861 | C39: -1014.02831 | D39: 4156.972171 | E39: n.r. | G39: 14207.75906 | H39: 4816.06099 | I39: 9391.698071 | J39: n.r.
A40: Audiovisual | B40: 2270.02271 | C40: 2339.02801 | D40: -69.0053 | E40: -0.02950169887 | G40: 4483.21736 | H40: 4722.02426 | I40: -238.8069 | J40: -0.05057299303
A41: Classified | B41: 1137.55469 | C41: 1627.0456 | D41: -489.49091 | E41: -0.3008464606 | G41: 2358.0895 | H41: 1927.60874 | I41: 430.48076 | J41: 0.2233237228
A42: Gastronomy and Agencies | B42: -643.22277 | C42: 1117.21443 | D42: -1760.4372 | E42: n.r. | G42: 830.10414 | H42: 626.04389 | I42: 204.06025 | J42: 0.3259519872
A43: Corporate and adjustments | B43: -2870.77673 | C43: -3149.06351 | D43: 278.28678 | E43: 0.08837128217 | G43: -5919.77815 | H43: -5517.40564 | I43: -402.37251 | J43: -0.07292784621
A44: Total EBITDA | B44: 3036.521761 | C44: 920.19622 | D44: 2116.325541 | E44: n.r. | G44: 15959.39191 | H44: 6574.33224 | I44: 9385.059671 | J44: n.r.
A46: EBITDA Margin
A47: Newpapers | B47: 0.04989421538 | C47: -0.0146512382 | D47: 6.454545358 | G47: 0.1058128323 | H47: 0.03643460302 | I47: 6.937822931
A48: Audiovisual | B48: 0.3036151876 | C48: 0.2736838374 | D48: 2.993135018 | G48: 0.3062826972 | H48: 0.3101189869 | I48: -0.3836289663
A49: Classified | B49: 0.1907495395 | C49: 0.2445616695 | D49: -5.381212997 | G49: 0.19317085 | H49: 0.1783676619 | I49: 1.480318802
A50: Gastronomy and Agencies | B50: -0.220223636 | C50: 0.1871357461 | D50: -40.73593821 | G50: 0.08673940331 | H50: 0.08459177809 | I50: 0.2147625228
A51: Corporate and adjustments | B51: n/s | C51: n/s | D51: n/s | G51: n/s | H51: n/s | I51: n/s
A52: Total EBITDA Margin | B52: 0.03873526857 | C52: 0.01030681844 | D52: 2.842845013 | G52: 0.09467278295 | H52: 0.04016176782 | I52: 5.451101513
A54: EBIT
A55: Newpapers | B55: -848.2103019 | C55: -5130.489 | D55: 4282.278698 | E55: 0.8346726205 | G55: 16708.37888 | H55: -3217.26792 | I55: 19925.6468 | J55: n.r.
A56: Audiovisual | B56: 2236.05105 | C56: 2253.13288 | D56: -17.08183 | E56: -0.007581368215 | G56: 4377.47971 | H56: 4555.49975 | I56: -178.02004 | J56: -0.03907804846
A57: Classified | B57: 752.73213 | C57: 1224.34794 | D57: -471.61581 | E57: -0.3851975362 | G57: 1555.42428 | H57: 1120.92728 | I57: 434.497 | J57: 0.387622826
A58: Gastronomy and Agencies | B58: -886.34225 | C58: 1094.4902 | D58: -1980.83245 | E58: n.r. | G58: 344.41754 | H58: 159.58783 | I58: 184.82971 | J58: n.r.
A59: Corporate and adjustments | B59: -2995.17369 | C59: -3246.68345 | D59: 251.50976 | E59: 0.07746667141 | G59: -6166.54786 | H59: -5759.24329 | I59: -407.30457 | J59: -0.07072188992
A60: Total EBIT | B60: -1740.943062 | C60: -3805.20143 | D60: 2064.258368 | E60: 0.5424833366 | G60: 16819.15255 | H60: -3140.49635 | I60: 19959.6489 | J60: n.r.
A62: EBIT Margin
A63: Newpapers | B63: -0.01346533357 | C63: -0.07412812412 | D63: 6.066279054 | G63: 0.1244362946 | H63: -0.02433936774 | I63: 14.87756624
A64: Audiovisual | B64: 0.2990714833 | C64: 0.2636334623 | D64: 3.543802096 | G64: 0.2990589536 | H64: 0.2991824881 | I64: -0.01235345151
A65: Classified | B65: 0.1262210146 | C65: 0.184032074 | D65: -5.781105934 | G65: 0.1274178229 | H65: 0.103722905 | I65: 2.369491791
A66: Gastronomy and Agencies | B66: -0.3034617588 | C66: 0.1833293902 | D66: -48.6791149 | G66: 0.0359889446 | H66: 0.02156369308 | I66: 1.442525152
A67: Corporate and adjustments | B67: n/s | C67: n/s | D67: n/s | G67: n/s | H67: n/s | I67: n/s
A68: Total EBIT Margin | B68: -0.02220827064 | C68: -0.04262082304 | D68: 2.041255241 | G68: 0.09977297301 | H68: -0.01918489676 | I68: 11.89578698
A70: Comparable EBITDA
A71: Newpapers | B71: 3150.386171 | C71: 2464.91846 | D71: 685.4677114 | E71: 0.2780894064 | G71: 14207.75906 | H71: 8255.42572 | I71: 5952.333341 | J71: 0.7210207617
A72: Audiovisual | B72: 2270.08249 | C72: 2339.57653 | D72: -69.49404 | E72: -0.02970368317 | G72: 4483.21736 | H72: 4722.57278 | I72: -239.35542 | J72: -0.05068326761
A73: Classified | B73: 1139.12641 | C73: 1696.21712 | D73: -557.09071 | E73: -0.3284312506 | G73: 2358.0895 | H73: 1992.78182 | I73: 365.30768 | J73: 0.1833154419
A74: Gastronomy and Agencies | B74: -639.1331 | C74: 1131.31812 | D74: -1770.45122 | E74: n.r. | G74: 830.10414 | H74: 662.39758 | I74: 167.70656 | J74: 0.2531811182
A75: Corporate and adjustments | B75: -2870.70236 | C75: -2521.7136 | D75: -348.98876 | E75: -0.1383934956 | G75: -5919.77815 | H75: -4733.34245 | I75: -1186.4357 | J75: -0.2506549468
A76: Total comparable EBITDA | B76: 3049.759611 | C76: 5110.31663 | D76: -2060.557019 | E76: -0.4032151367 | G76: 15959.39191 | H76: 10899.83545 | I76: 5059.556461 | J76: 0.4641864993

Sheet Line of Activity 19vs21
A1: LINE OF ACTIVITY
A3: Thousand Euro | B3: IFRS | G3: IFRS
B4: 1Q21 | C4: 1Q19 | D4: Var Abs | E4: Var % | G4: 1H21 | H4: 1H19 | I4: Var Abs | J4: Var %
A6: Circulation Revenues
A7: Newpapers | B7: 28835.24968 | C7: 33540.42228 | D7: =B7-C7 -> -4705.1726 | E7: =D7/C7 -> -0.1402836422 | G7: 57348.1221 | H7: 66761.80705 | I7: =G7-H7 -> -9413.68495 | J7: =I7/H7 -> -0.1410040466
A8: Audiovisual | B8: 0 | C8: 0 | D8: =B8-C8 -> 0 | E8: n.a. | G8: 0 | H8: 0 | I8: =G8-H8 -> 0 | J8: n.a.
A9: Classified | B9: 0 | C9: 0 | D9: 0 | E9: n.a. | G9: 0 | H9: 0 | I9: 0 | J9: n.a.
A10: Gastronomy and Agencies | B10: 0 | C10: 0 | D10: 0 | E10: n.a. | G10: 0 | H10: 0 | I10: 0 | J10: n.a.
A11: Corporate and adjustments | B11: 0 | C11: 0 | D11: 0 | E11: n.a. | G11: -0.09614 | H11: 0 | I11: -0.09614 | J11: n.a.
A12: Total Circulation Revenues | B12: 28835.24968 | C12: 33540.42228 | D12: -4705.1726 | E12: =D12/C12 -> -0.1402836422 | G12: 57348.02596 | H12: 66761.80705 | I12: -9413.78109 | J12: =I12/H12 -> -0.1410054866
A14: Advertising Revenues
A15: Newpapers | B15: 24625.90333 | C15: 32677.63217 | D15: -8051.728842 | E15: -0.2463987844 | G15: 56489.45447 | H15: 69563.58771 | I15: =G15-H15 -> -13074.13324 | J15: =I15/H15 -> -0.1879450683
A16: Audiovisual | B16: 470.64045 | C16: 809.6305 | D16: -338.99005 | E16: -0.4186972329 | G16: 906.47235 | H16: 1560.45219 | I16: -653.97984 | J16: -0.4190963646
A17: Classified | B17: 5606.84045 | C17: 6385.19171 | D17: -778.35126 | E17: -0.1218994347 | G17: 11524.0452 | H17: 13232.65708 | I17: -1708.61188 | J17: -0.1291208462
A18: Gastronomy and Agencies | B18: 0 | C18: 0 | D18: 0 | E18: n.a. | G18: 133.32678 | H18: 112.12953 | I18: 21.19725 | J18: n.a.
A19: Corporate and adjustments | B19: -22.03005 | C19: -239.33865 | D19: 217.3086 | E19: -0.9079544821 | G19: -88.53021 | H19: -263.23018 | I19: 174.69997 | J19: =I19/H19 -> -0.6636775844
A20: Total Advertising Revenues | B20: 30681.35418 | C20: 39633.11573 | D20: -8951.761552 | E20: -0.2258657031 | G20: 68964.76859 | H20: 84205.59633 | I20: -15240.82774 | J20: -0.1809954255
A22: Other Revenues
A23: Newpapers | B23: 9530.996225 | C23: 12025.8004 | D23: -2494.804175 | E23: -0.2074543142 | G23: 20434.97571 | H23: 24279.88251 | I23: =G23-H23 -> -3844.9068 | J23: =I23/H23 -> -0.1583577185
A24: Audiovisual | B24: 7006.00368 | C24: 7443.02643 | D24: -437.02275 | E24: -0.05871573265 | G24: 13731.04195 | H24: 15027.86821 | I24: -1296.82626 | J24: -0.08629475864
A25: Classified | B25: 356.76341 | C25: 328.3923 | D25: 28.37111 | E25: 0.08639395625 | G25: 683.22883 | H25: 691.8122 | I25: -8.58337 | J25: -0.012407081
A26: Gastronomy and Agencies | B26: 2920.77082 | C26: 2779.86074 | D26: 140.91008 | E26: 0.05068961836 | G26: 9436.76603 | H26: 4286.39053 | I26: 5150.3755 | J26: 1.201564688
A27: Corporate and adjustments | B27: -939.484255 | C27: -709.9118 | D27: -229.572455 | E27: 0.3233816581 | G27: -2024.5726 | H27: -1730.09885 | I27: -294.47375 | J27: 0.1702063151
A28: Total Other Revenues | B28: 18875.04988 | C28: 21943.07675 | D28: -3068.02687 | E28: -0.1398175336 | G28: 42261.43992 | H28: 42872.92784 | I28: -611.48792 | J28: -0.01426279825
A30: Total Revenues
A31: Newpapers | B31: 62992.14923 | C31: 78243.85485 | D31: -15251.70562 | E31: -0.1949252839 | G31: 134272.5523 | H31: 160605.2773 | I31: =G31-H31 -> -26332.72499 | J31: =I31/H31 -> -0.1639592761
A32: Audiovisual | B32: 7476.64413 | C32: 8252.65693 | D32: -776.0128 | E32: -0.09403187441 | G32: 14637.5143 | H32: 16588.3204 | I32: -1950.8061 | J32: -0.1176011828
A33: Classified | B33: 5963.60386 | C33: 6713.58401 | D33: -749.98015 | E33: -0.1117108461 | G33: 12207.27403 | H33: 13924.46928 | I33: -1717.19525 | J33: -0.1233221328
A34: Gastronomy and Agencies | B34: 2920.77082 | C34: 2780 | D34: 140.77082 | E34: 0.05063698561 | G34: 9570.09281 | H34: 4715.5933 | I34: 4854.49951 | J34: 1.029456783
A35: Corporate and adjustments | B35: -961.514305 | C35: -949.25045 | D35: -12.263855 | E35: 0.01291951455 | G35: -2113.19895 | H35: -1993.32903 | I35: -119.86992 | J35: 0.0601355412
A36: Total Revenues | B36: 78391.65374 | C36: 95116.61476 | D36: -16724.96102 | E36: -0.1758363779 | G36: 168574.2345 | H36: 193840.3312 | I36: -25266.09675 | J36: -0.1303448905
A38: EBITDA
A39: Newpapers | B39: 3142.943861 | C39: 2329.89911 | D39: 813.0447514 | E39: 0.3489613554 | G39: 14207.75906 | H39: 13006.14345 | I39: =G39-H39 -> 1201.615611 | J39: =I39/H39 -> 0.09238830985
A40: Audiovisual | B40: 2270.02271 | C40: 2718.77519 | D40: -448.75248 | E40: -0.1650568541 | G40: 4483.21736 | H40: 5251.17793 | I40: -767.96057 | J40: -0.1462453911
A41: Classified | B41: 1137.55469 | C41: 550.80492 | D41: 586.74977 | E41: 1.065258767 | G41: 2358.0895 | H41: 2330.86469 | I41: 27.22481 | J41: 0.01168013318
A42: Gastronomy and Agencies | B42: -643.22277 | C42: 615.13701 | D42: -1258.35978 | E42: -2.045657731 | G42: 830.10414 | H42: 528.98832 | I42: 301.11582 | J42: 0.5692296193
A43: Corporate and adjustments | B43: -2870.77673 | C43: -3631.01549 | D43: 760.23876 | E43: -0.2093735932 | G43: -5919.77815 | H43: -6726.46627 | I43: 806.68812 | J43: -0.1199274757
A44: Total EBITDA | B44: 3036.521761 | C44: 2583.60074 | D44: 452.9210214 | E44: 0.17530612 | G44: 15959.39191 | H44: 14390.70812 | I44: 1568.683791 | J44: 0.1090067131
A46: EBITDA Margin
A47: Newpapers | B47: 0.04989421538 | C47: 0.02977740699 | D47: =+(B47-C47)*100 -> 2.01168084 | G47: 0.1058128323 | H47: 0.08098204288 | I47: =+(G47-H47)*100 -> 2.483078946
A48: Audiovisual | B48: 0.3036151876 | C48: 0.3294424103 | D48: =+(B48-C48)*100 -> -2.582722267 | G48: 0.3062826972 | H48: 0.3165587476 | I48: =+(G48-H48)*100 -> -1.027605037
A49: Classified | B49: 0.1907495395 | C49: 0.0820433496 | D49: 10.87061899 | G49: 0.19317085 | H49: 0.1673934312 | I49: 2.577741878
A50: Gastronomy and Agencies | B50: -0.220223636 | C50: 0.2154014976 | D50: -43.56251337 | G50: 0.08673940331 | H50: 0.1121785291 | I50: -2.543912574
A51: Corporate and adjustments | B51: n/s | C51: n/s | D51: n/s | G51: n/s | H51: n/s | I51: n/s
A52: Total EBITDA Margin | B52: 0.03873526857 | C52: 0.0271624547 | D52: 1.157281387 | G52: 0.09467278295 | H52: 0.07424000996 | I52: =+(G52-H52)*100 -> 2.043277299
A54: EBIT
A55: Newpapers | B55: -848.2103019 | C55: -1819.32883 | D55: 971.1185281 | E55: -0.5337784528 | G55: 16708.37888 | H55: 4644.07846 | I55: =G55-H55 -> 12064.30042 | J55: =I55/H55 -> 2.597781351
A56: Audiovisual | B56: 2236.05105 | C56: 2596.19779 | D56: -360.14674 | E56: -0.1387208407 | G56: 4377.47971 | H56: 5023.0513 | I56: -645.57159 | J56: -0.1285217991
A57: Classified | B57: 752.73213 | C57: 416.39267 | D57: 336.33946 | E57: 0.8077458712 | G57: 1555.42428 | H57: 1572.46928 | I57: -17.045 | J57: -0.01083963942
A58: Gastronomy and Agencies | B58: -886.34225 | C58: 610.20584 | D58: -1496.54809 | E58: -2.452529936 | G58: 344.41754 | H58: 518.42622 | I58: -174.00868 | J58: -0.3356479153
A59: Corporate and adjustments | B59: -2995.17369 | C59: -3809.49655 | D59: 814.32286 | E59: -0.2137612803 | G59: -6166.54786 | H59: -7009.57839 | I59: 843.03053 | J59: -0.1202683647
A60: Total EBIT | B60: -1740.943062 | C60: -2006.02908 | D60: 265.0860181 | E60: -0.1321446537 | G60: 16819.15255 | H60: 4748.44687 | I60: 12070.70568 | J60: 2.542032375
A62: EBIT Margin
A63: Newpapers | B63: -0.01346533357 | C63: -0.02325203473 | D63: =+(B63-C63)*100 -> 0.9786701152 | G63: 0.1244362946 | H63: 0.02891610126 | I63: =+(G63-H63)*100 -> 9.552019337
A64: Audiovisual | B64: 0.2990714833 | C64: 0.3145893271 | D64: =+(B64-C64)*100 -> -1.551784376 | G64: 0.2990589536 | H64: 0.3028065035 | I64: =+(G64-H64)*100 -> -0.3747549935
A65: Classified | B65: 0.1262210146 | C65: 0.06202241148 | D65: 6.419860314 | G65: 0.1274178229 | H65: 0.1129284893 | I65: 1.448933357
A66: Gastronomy and Agencies | B66: -0.3034617588 | C66: 0.2136747581 | D66: -51.71365169 | G66: 0.0359889446 | H66: 0.1099387048 | I66: -7.394976025
A67: Corporate and adjustments | B67: n/s | C67: n/s | D67: n/s | G67: n/s | H67: n/s | I67: n/s
A68: Total EBIT Margin | B68: -0.02220827064 | C68: -0.02109020685 | D68: -0.1118063789 | G68: 0.09977297301 | H68: 0.02449669189 | I68: =+(G68-H68)*100 -> 7.527628112
A70: Comparable EBITDA
A71: Newpapers | B71: 3150.386171 | C71: 7819.92134 | D71: -4669.535169 | E71: -0.5971332659 | G71: 14207.75906 | H71: 18524.1206 | I71: =G71-H71 -> -4316.361539 | J71: =I71/H71 -> -0.2330130338
A72: Audiovisual | B72: 2270.08249 | C72: 2718.77519 | D72: =B72-C72 -> -448.6927 | E72: =D72/C72 -> -0.1650348663 | G72: 4483.21736 | H72: 5251.17793 | I72: -767.96057 | J72: -0.1462453911
A73: Classified | B73: 1139.12641 | C73: 1040.92324 | D73: 98.20317 | E73: 0.09434237437 | G73: 2358.0895 | H73: 2852.66353 | I73: -494.57403 | J73: -0.1733727181
A74: Gastronomy and Agencies | B74: -639.1331 | C74: 616.12645 | D74: -1255.25955 | E74: -2.037340793 | G74: 830.10414 | H74: 537.84615 | I74: 292.25799 | J74: 0.5433858549
A75: Corporate and adjustments | B75: -2870.70236 | C75: -3065.07123 | D75: 194.36887 | E75: -0.06341414454 | G75: -5919.77815 | H75: -6137.19827 | I75: 217.42012 | J75: -0.03542660844
A76: Total comparable EBITDA | B76: 3049.759611 | C76: 9130.67499 | D76: -6080.915379 | E76: -0.6659874966 | G76: 15959.39191 | H76: 21028.60994 | I76: -5069.218029 | J76: -0.2410629159

Sheet Newspapers
A1: NEWSPAPERS
A3: Thousand Euro | B3: IFRS | G3: IFRS
B4: 1Q21 | C4: 1Q20 | D4: Var Abs | E4: Var % | G4: 1H21 | H4: 1H20 | I4: Var Abs | J4: Var %
A6: Circulation Revenues
A7: Regionals | B7: 21111.75736 | C7: 22420.92401 | D7: -1309.16665 | E7: -0.05839039682 | G7: 41777.70366 | H7: 42861.33225 | I7: -1083.62859 | J7: -0.0252821957
A8: ABC | B8: 6873.21197 | C8: 7773.71764 | D8: -900.50567 | E8: -0.1158397708 | G8: 13901.07394 | H8: 14544.49614 | I8: -643.4222 | J8: -0.04423819112
A9: Supplements & Magazines | B9: 2377.41876 | C9: 2952.63601 | D9: -575.21725 | E9: -0.194814819 | G9: 4710.95923 | H9: 5611.04649 | I9: -900.08726 | J9: -0.1604134383
A10: Adjustments intersegment | B10: -1527.13841 | C10: -1998.26433 | D10: 471.12592 | E10: 0.2357675673 | G10: -3041.61473 | H10: -3832.44119 | I10: 790.82646 | J10: 0.2063505794
A11: Total Circulation Revenues | B11: 28835.24968 | C11: 31149.01333 | D11: -2313.76365 | E11: -0.07428047963 | G11: 57348.1221 | H11: 59184.43369 | I11: -1836.31159 | J11: -0.03102693522
A13: Advertising Revenues
A14: Regionals | B14: 16876.30315 | C14: 18570.27173 | D14: -1693.968582 | E14: -0.09121937507 | G14: 38346.55668 | H14: 36742.11439 | I14: 1604.442289 | J14: 0.04366766354
A15: ABC | B15: 6505.03913 | C15: 7476.22694 | D15: -971.18781 | E15: -0.1299034684 | G15: 15378.88328 | H15: 14670.40342 | I15: 708.47986 | J15: 0.04829314094
A16: Supplements & Magazines | B16: 1244.02348 | C16: 1482.13012 | D16: -238.10664 | E16: -0.1606516437 | G16: 2765.04021 | H16: 2453.1756 | I16: 311.86461 | J16: 0.1271269003
A17: Adjustments intersegment | B17: 0.53757 | C17: 0 | D17: 0.53757 | E17: n.a. | G17: -1.0257 | H17: -1.59 | I17: 0.5643 | J17: 0.3549056604
A18: Total Advertising Revenues | B18: 24625.90333 | C18: 27528.62879 | D18: -2902.725462 | E18: -0.1054438811 | G18: 56489.45447 | H18: 53864.10341 | I18: 2625.351059 | J18: 0.04874027214
A20: Other Revenues
A21: Regionals | B21: 7071.33848 | C21: 7403.10004 | D21: -331.76156 | E21: -0.04481386962 | G21: 14953.99359 | H21: 13769.42933 | I21: 1184.564255 | J21: 0.08602856564
A22: ABC | B22: 4022.42866 | C22: 4204.57535 | D22: -182.14669 | E22: -0.04332106689 | G22: 8052.36304 | H22: 7098.75597 | I22: 953.60707 | J22: 0.1343343924
A23: Supplements & Magazines | B23: 16.77333 | C23: 264.4634 | D23: -247.69007 | E23: -0.9365759875 | G23: 619.32859 | H23: 406.81275 | I23: 212.51584 | J23: 0.52239228
A24: Adjustments intersegment | B24: -1579.544245 | C24: -1338.68106 | D24: -240.863185 | E24: -0.1799257435 | G24: -3190.709505 | H24: -2139.82543 | I24: -1050.884075 | J24: -0.4911073867
A25: Total Other Revenues | B25: 9530.996225 | C25: 10533.45773 | D25: -1002.461505 | E25: -0.09516927211 | G25: 20434.97571 | H25: 19135.17262 | I25: 1299.80309 | J25: 0.06792742955
A27: Total Revenues
A28: Regionals | B28: 45059.39899 | C28: 48394.29578 | D28: -3334.896792 | E28: -0.06891094784 | G28: 95078.25392 | H28: 93372.87597 | I28: 1705.377954 | J28: 0.01826416865
A29: ABC | B29: 17400.67976 | C29: 19454.51993 | D29: -2053.84017 | E29: -0.1055713622 | G29: 37332.32026 | H29: 36313.65553 | I29: 1018.66473 | J29: 0.02805183656
A30: Supplements & Magazines | B30: 3638.21557 | C30: 4699.22953 | D30: -1061.01396 | E30: -0.2257846639 | G30: 8095.32803 | H30: 8471.03484 | I30: -375.70681 | J30: -0.04435193776
A31: Adjustments intersegment | B31: -3106.145085 | C31: -3336.94539 | D31: 230.800305 | E31: 0.06916514298 | G31: -6233.349935 | H31: -5973.85662 | I31: -259.493315 | J31: -0.04343815587
A32: Total Revenues | B32: 62992.14923 | C32: 69211.09985 | D32: -6218.950617 | E32: -0.08985481564 | G32: 134272.5523 | H32: 132183.7097 | I32: 2088.842559 | J32: 0.01580257176
A34: EBITDA
A35: Regionals | B35: 4157.050011 | C35: 180.76416 | D35: 3976.285851 | E35: n.r. | G35: 12542.13768 | H35: 5814.89052 | I35: 6727.247161 | J35: n.r.
A36: ABC | B36: -1042.30405 | C36: -497.32807 | D36: -544.97598 | E36: n.r. | G36: 1001.07852 | H36: -740.96881 | I36: 1742.04733 | J36: n.r.
A37: Supplements & Magazines | B37: 28.1979 | C37: -697.4644 | D37: 725.6623 | E37: n.r. | G37: 664.54286 | H37: -257.86073 | I37: 922.40359 | J37: n.r.
A38: Total EBITDA | B38: 3142.943861 | C38: -1014.02831 | D38: 4156.972171 | E38: n.r. | G38: 14207.75906 | H38: 4816.06099 | I38: 9391.698071 | J38: n.r.
A40: EBITDA Margin
A41: Regionals | B41: 0.09225711183 | C41: 0.003735236913 | D41: 8.852187492 | G41: 0.1319138411 | H41: 0.06227601388 | I41: 6.963782723
A42: ABC | B42: -0.05990019151 | C42: -0.02556362592 | D42: -3.433656559 | G42: 0.02681533087 | H42: -0.02040468797 | I42: 4.722001884
A43: Supplements & Magazines | B43: 0.007750475324 | C43: -0.1484210115 | D43: 15.61714868 | G43: 0.08208967661 | H43: -0.0304402868 | I43: 11.25299634
A44: Total EBITDA Margin | B44: 0.04989421538 | C44: -0.0146512382 | D44: 6.454545358 | G44: 0.1058128323 | H44: 0.03643460302 | I44: 6.937822931
A46: EBIT
A47: Regionals | B47: 2110.724948 | C47: -1901.10645 | D47: 4011.831398 | E47: n.r. | G47: 18985.65689 | H47: 1714.35392 | I47: 17271.30297 | J47: n.r.
A48: ABC | B48: -2882.16016 | C48: -2369.6515 | D48: -512.50866 | E48: -0.216280183 | G48: -2724.69531 | H48: -4381.77981 | I48: 1657.0845 | J48: 0.3781761229
A49: Supplements & Magazines | B49: -76.77509 | C49: -859.73105 | D49: 782.95596 | E49: 0.9106987121 | G49: 447.4173 | H49: -549.84204 | I49: 997.25934 | J49: n.r.
A50: Total EBIT | B50: -848.2103019 | C50: -5130.489 | D50: 4282.278698 | E50: 0.8346726205 | G50: 16708.37888 | H50: -3217.26792 | I50: 19925.6468 | J50: n.r.
A52: EBIT Margin
A53: Regionals | B53: 0.04684316692 | C53: -0.03928368869 | D53: 8.612685561 | G53: 0.1996845346 | H53: 0.01836029899 | I53: 18.13242356
A54: ABC | B54: -0.1656349177 | C54: -0.1218046762 | D54: -4.383024154 | G54: -0.0729848906 | H54: -0.1206647953 | I54: 4.767990467
A55: Supplements & Magazines | B55: -0.02110240268 | C55: -0.1829514912 | D55: 16.18490885 | G55: 0.05526858187 | H55: -0.06490848525 | I55: 12.01770671
A56: Total EBIT Margin | B56: -0.01346533357 | C56: -0.07412812412 | D56: 6.066279054 | G56: 0.1244362946 | H56: -0.02433936774 | I56: 14.87756624
A58: Comparable EBITDA
A59: Regionals | B59: 4161.476961 | C59: 3243.30311 | D59: 918.1738514 | E59: 0.2830983785 | G59: 12542.13768 | H59: 9109.59971 | I59: 3432.537971 | J59: 0.3768044788
A60: ABC | B60: -1042.28221 | C60: -497.23257 | D60: -545.04964 | E60: n.r. | G60: 1001.07852 | H60: -740.87331 | I60: 1741.95183 | J60: n.r.
A61: Supplements& Magazines | B61: 31.19142 | C61: -281.15208 | D61: 312.3435 | E61: n.r. | G61: 664.54286 | H61: -113.30069 | I61: 777.84355 | J61: n.r.
A62: Total comparable EBITDA | B62: 3150.386171 | C62: 2464.91846 | D62: 685.4677114 | E62: 0.2780894064 | G62: 14207.75906 | H62: 8255.42572 | I62: 5952.333341 | J62: 0.7210207617

Sheet Newspapers 19vs21
A1: NEWSPAPERS
A3: Thousand Euro | B3: IFRS | G3: IFRS
B4: 1Q21 | C4: 1Q19 | D4: Var Abs | E4: Var % | G4: 1H21 | H4: 1H19 | I4: Var Abs | J4: Var %
A6: Circulation Revenues
A7: Regionals | B7: 21111.75736 | C7: 23304.54472 | D7: =B7-C7 -> -2192.78736 | E7: =D7/C7 -> -0.09409269249 | G7: 41777.70366 | H7: 46244.81774 | I7: =G7-H7 -> -4467.11408 | J7: =I7/H7 -> -0.09659707397
A8: ABC | B8: 6873.21197 | C8: 9216.9524 | D8: =B8-C8 -> -2343.74043 | E8: =D8/C8 -> -0.2542858342 | G8: 13901.07394 | H8: 18504.70069 | I8: =G8-H8 -> -4603.62675 | J8: =I8/H8 -> -0.248781476
A9: Supplements & Magazines | B9: 2377.41876 | C9: 3074.33836 | D9: -696.9196 | E9: -0.2266892965 | G9: 4710.95923 | H9: 6096.64768 | I9: -1385.68845 | J9: -0.2272869489
A10: Adjustments intersegment | B10: -1527.13841 | C10: -2055.4132 | D10: 528.27479 | E10: -0.2570163459 | G10: -3041.61473 | H10: -4084.35906 | I10: 1042.74433 | J10: -0.255301827
A11: Total Circulation Revenues | B11: 28835.24968 | C11: 33540.42228 | D11: -4705.1726 | E11: -0.1402836422 | G11: 57348.1221 | H11: 66761.80705 | I11: -9413.68495 | J11: -0.1410040466
A13: Advertising Revenues
A14: Regionals | B14: 16876.30315 | C14: 22675.5899 | D14: -5799.286752 | E14: -0.2557502044 | G14: 38346.55668 | H14: 48116.92736 | I14: =G14-H14 -> -9770.370681 | J14: =I14/H14 -> -0.2030547505
A15: ABC | B15: 6505.03913 | C15: 8291.94238 | D15: -1786.90325 | E15: -0.2154987539 | G15: 15378.88328 | H15: 17372.69056 | I15: -1993.80728 | J15: -0.1147667526
A16: Supplements & Magazines | B16: 1244.02348 | C16: 1734.02792 | D16: -490.00444 | E16: -0.2825816322 | G16: 2765.04021 | H16: 4098.39782 | I16: -1333.35761 | J16: -0.3253363067
A17: Adjustments intersegment | B17: 0.53757 | C17: -23.92803 | D17: 24.4656 | E17: -1.02246612 | G17: -1.0257 | H17: -24.42803 | I17: 23.40233 | J17: -0.9580113501
A18: Total Advertising Revenues | B18: 24625.90333 | C18: 32677.63217 | D18: -8051.728842 | E18: -0.2463987844 | G18: 56489.45447 | H18: 69563.58771 | I18: -13074.13324 | J18: -0.1879450683
A20: Other Revenues
A21: Regionals | B21: 7071.33848 | C21: 8263.41859 | D21: -1192.08011 | E21: -0.1442599206 | G21: 14953.99359 | H21: 16826.89621 | I21: =G21-H21 -> -1872.902625 | J21: =I21/H21 -> -0.1113041051
A22: ABC | B22: 4022.42866 | C22: 4496.32601 | D22: -473.89735 | E22: -0.1053965724 | G22: 8052.36304 | H22: 9688.83719 | I22: -1636.47415 | J22: -0.1689030498
A23: Supplements & Magazines | B23: 16.77333 | C23: 824.77656 | D23: -808.00323 | E23: -0.979663183 | G23: 619.32859 | H23: 1417.168 | I23: -797.83941 | J23: -0.5629815308
A24: Adjustments intersegment | B24: -1579.544245 | C24: -1558.72076 | D24: -20.823485 | E24: 0.01335934282 | G24: -3190.709505 | H24: -3653.01889 | I24: 462.309385 | J24: -0.1265554323
A25: Total Other Revenues | B25: 9530.996225 | C25: 12025.8004 | D25: -2494.804175 | E25: -0.2074543142 | G25: 20434.97571 | H25: 24279.88251 | I25: -3844.9068 | J25: -0.1583577185
A27: Total Revenues
A28: Regionals | B28: 45059.39899 | C28: 54243.55321 | D28: -9184.154222 | E28: -0.1693132857 | G28: 95078.25392 | H28: 111188.6413 | I28: =G28-H28 -> -16110.38739 | J28: =I28/H28 -> -0.1448923847
A29: ABC | B29: 17400.67976 | C29: 22005.22079 | D29: -4604.54103 | E29: -0.2092476633 | G29: 37332.32026 | H29: 45566.22844 | I29: -8233.90818 | J29: -0.1807019905
A30: Supplements & Magazines | B30: 3638.21557 | C30: 5633.14284 | D30: -1994.92727 | E30: -0.3541410766 | G30: 8095.32803 | H30: 11612.2135 | I30: -3516.88547 | J30: -0.3028609033
A31: Adjustments intersegment | B31: -3106.145085 | C31: -3638.06199 | D31: 531.916905 | E31: -0.1462088624 | G31: -6233.349935 | H31: -7761.80598 | I31: 1528.456045 | J31: -0.1969201561
A32: Total Revenues | B32: 62992.14923 | C32: 78243.85485 | D32: -15251.70562 | E32: -0.1949252839 | G32: 134272.5523 | H32: 160605.2773 | I32: -26332.72499 | J32: -0.1639592761
A34: EBITDA
A35: Regionals | B35: 4157.050011 | C35: 3192.28671 | D35: 964.7633014 | E35: 0.3022169965 | G35: 12542.13768 | H35: 11560.40382 | I35: =G35-H35 -> 981.733861 | J35: =I35/H35 -> 0.08492210794
A36: ABC | B36: -1042.30405 | C36: -688.44832 | D36: -353.85573 | E36: 0.5139902586 | G36: 1001.07852 | H36: 1752.49848 | I36: -751.41996 | J36: -0.4287706772
A37: Supplements & Magazines | B37: 28.1979 | C37: -173.93928 | D37: 202.13718 | E37: -1.162113469 | G37: 664.54286 | H37: -306.75885 | I37: 971.30171 | J37: -3.166336391
A38: Total EBITDA | B38: 3142.943861 | C38: 2329.89911 | D38: 813.0447514 | E38: 0.3489613554 | G38: 14207.75906 | H38: 13006.14345 | I38: 1201.615611 | J38: 0.09238830985
A40: EBITDA Margin
A41: Regionals | B41: 0.09225711183 | C41: 0.0588509882 | D41: =+(B41-C41)*100 -> 3.340612363 | G41: 0.1319138411 | H41: 0.1039710863 | I41: =+(G41-H41)*100 -> 2.794275482
A42: ABC | B42: -0.05990019151 | C42: -0.03128568109 | D42: =+(B42-C42)*100 -> -2.861451042 | G42: 0.02681533087 | H42: 0.0384604682 | I42: =+(G42-H42)*100 -> -1.164513733
A43: Supplements & Magazines | B43: 0.007750475324 | C43: -0.03087783941 | D43: 3.862831474 | G43: 0.08208967661 | H43: -0.0264169144 | I43: 10.8506591
A44: Total EBITDA Margin | B44: 0.04989421538 | C44: 0.02977740699 | D44: 2.01168084 | G44: 0.1058128323 | H44: 0.08098204288 | I44: 2.483078946
A46: EBIT
A47: Regionals | B47: 2110.724948 | C47: 1050.47381 | D47: 1060.251138 | E47: 1.009307541 | G47: 18985.65689 | H47: 7242.36158 | I47: =G47-H47 -> 11743.29531 | J47: =I47/H47 -> 1.621473214
A48: ABC | B48: -2882.16016 | C48: -2627.85565 | D48: -254.30451 | E48: 0.09677263285 | G48: -2724.69531 | H48: -2148.98019 | I48: -575.71512 | J48: 0.2679015482
A49: Supplements & Magazines | B49: -76.77509 | C49: -241.94699 | D49: 165.1719 | E49: -0.6826780527 | G49: 447.4173 | H49: -449.30293 | I49: 896.72023 | J49: -1.99580321
A50: Total EBIT | B50: -848.2103019 | C50: -1819.32883 | D50: 971.1185281 | E50: -0.5337784528 | G50: 16708.37888 | H50: 4644.07846 | I50: 12064.30042 | J50: 2.597781351
A52: EBIT Margin
A53: Regionals | B53: 0.04684316692 | C53: 0.01936587388 | D53: =+(B53-C53)*100 -> 2.747729304 | G53: 0.1996845346 | H53: 0.06513580429 | I53: =+(G53-H53)*100 -> 13.45487303
A54: ABC | B54: -0.1656349177 | C54: -0.1194196448 | D54: -4.621527292 | G54: -0.0729848906 | H54: -0.0471616867 | I54: -2.582320389
A55: Supplements & Magazines | B55: -0.02110240268 | C55: -0.04295062221 | D55: 2.184821953 | G55: 0.05526858187 | H55: -0.03869227258 | I55: 9.396085445
A56: Total EBIT Margin | B56: -0.01346533357 | C56: -0.02325203473 | D56: =+(B56-C56)*100 -> 0.9786701152 | G56: 0.1244362946 | H56: 0.02891610126 | I56: =+(G56-H56)*100 -> 9.552019337
A58: Comparable EBITDA
A59: Regionals | B59: 4161.476961 | C59: 7032.04565 | D59: -2870.568689 | E59: -0.408212465 | G59: 12542.13768 | H59: 15573.44351 | I59: =G59-H59 -> -3031.305829 | J59: =I59/H59 -> -0.1946458294
A60: ABC | B60: -1042.28221 | C60: 955.6403 | D60: -1997.92251 | E60: -2.090663726 | G60: 1001.07852 | H60: 3047.62014 | I60: -2046.54162 | J60: -0.6715212284
A61: Supplements& Magazines | B61: 31.19142 | C61: -167.76461 | D61: 198.95603 | E61: -1.185923718 | G61: 664.54286 | H61: -96.94305 | I61: 761.48591 | J61: -7.854981971
A62: Total comparable EBITDA | B62: 3150.386171 | C62: 7819.92134 | D62: -4669.535169 | E62: -0.5971332659 | G62: 14207.75906 | H62: 18524.1206 | I62: -4316.361539 | J62: -0.2330130338

Sheet Audiovisual
A1: AUDIOVISUAL
A3: Thousand Euro | B3: IFRS | G3: IFRS
B4: 1Q21 | C4: 1Q20 | D4: Var Abs | E4: Var % | G4: 1H21 | H4: 1H20 | I4: Var Abs | J4: Var %
A6: Advertising Revenues
A7: DTT | B7: 461.22645 | C7: 750.31577 | D7: -289.08932 | E7: -0.3852902092 | G7: 887.68835 | H7: 1123.18732 | I7: -235.49897 | J7: -0.2096702534
A8: Radio | B8: 9.414 | C8: 7.39897 | D8: 2.01503 | E8: 0.272339258 | G8: 18.784 | H8: 14.80265 | I8: 3.98135 | J8: 0.2689619764
A9: Content | B9: 0 | C9: 0 | D9: 0 | E9: n.a. | G9: 0 | H9: 0 | I9: 0 | J9: n.a.
A10: Adjustments intersegment | B10: 0 | C10: -2.819433575e-14 | D10: 2.819433575e-14 | E10: 1 | G10: 0 | H10: -9.276845958e-14 | I10: 9.276845958e-14 | J10: 1
A11: Adjustments intersegment | B11: 470.64045 | C11: 757.71474 | D11: -287.07429 | E11: -0.3788685568 | G11: 906.47235 | H11: 1137.98997 | I11: -231.51762 | J11: -0.2034443414
A13: Other Revenues
A14: DTT | B14: 5889.82707 | C14: 6640.01772 | D14: -750.19065 | E14: -0.1129802181 | G14: 11537.27608 | H14: 11500.39423 | I14: 36.88185 | J14: 0.003207007452
A15: Radio | B15: 758.56723 | C15: 834.14009 | D15: -75.57286 | E15: -0.09059972168 | G15: 1510.85823 | H15: 1590.6227 | I15: -79.76447 | J15: -0.05014669412
A16: Content | B16: 409.93856 | C16: 372.83494 | D16: 37.10362 | E16: 0.09951755058 | G16: 787.566 | H16: 1113.97974 | I16: -326.41374 | J16: -0.2930158676
A17: Adjustments intersegment | B17: -52.32918 | C17: -58.24734 | D17: 5.91816 | E17: 0.1016039531 | G17: -104.65836 | H17: -116.49468 | I17: 11.83632 | J17: 0.1016039531
A18: Total Other Revenues | B18: 7006.00368 | C18: 7788.74541 | D18: -782.74173 | E18: -0.1004965099 | G18: 13731.04195 | H18: 14088.50199 | I18: -357.46004 | J18: -0.02537246616
A20: Total Revenues
A21: DTT | B21: 6351.05352 | C21: 7390.33349 | D21: -1039.27997 | E21: -0.1406269381 | G21: 12424.96443 | H21: 12623.58155 | I21: -198.61712 | J21: -0.01573381684
A22: Radio | B22: 767.98123 | C22: 841.53906 | D22: -73.55783 | E22: -0.08740869378 | G22: 1529.64223 | H22: 1605.42535 | I22: -75.78312 | J22: -0.0472043873
A23: Content | B23: 409.93856 | C23: 372.83494 | D23: 37.10362 | E23: 0.09951755058 | G23: 787.566 | H23: 1113.97974 | I23: -326.41374 | J23: -0.2930158676
A24: Adjustments intersegment | B24: -52.32918 | C24: -58.24734 | D24: 5.91816 | E24: 0.1016039531 | G24: -104.65836 | H24: -116.49468 | I24: 11.83632 | J24: 0.1016039531
A25: Total Revenues | B25: 7476.64413 | C25: 8546.46015 | D25: -1069.81602 | E25: -0.125176506 | G25: 14637.5143 | H25: 15226.49196 | I25: -588.97766 | J25: -0.03868111326
A27: EBITDA
A28: DTT | B28: 1307.13383 | C28: 1438.17115 | D28: -131.03732 | E28: -0.09111385665 | G28: 2596.77345 | H28: 2613.32812 | I28: -16.55467 | J28: -0.00633470779
A29: Radio | B29: 651.29963 | C29: 654.91994 | D29: -3.62031 | E29: -0.005527866505 | G29: 1297.77347 | H29: 1238.20689 | I29: 59.56658 | J29: 0.04810713014
A30: Content | B30: 311.58925 | C30: 245.93692 | D30: 65.65233 | E30: 0.2669478417 | G30: 588.67044 | H30: 870.48925 | I30: -281.81881 | J30: -0.3237476052
A31: Total EBITDA | B31: 2270.02271 | C31: 2339.02801 | D31: -69.0053 | E31: -0.02950169887 | G31: 4483.21736 | H31: 4722.02426 | I31: -238.8069 | J31: -0.05057299303
A33: EBITDA Margin
A34: DTT | B34: 0.205813701 | C34: 0.194601658 | D34: 1.121204301 | G34: 0.2089964494 | H34: 0.2070195459 | I34: 0.1976903526
A35: Radio | B35: 0.8480671201 | C35: 0.7782406915 | D35: 6.982642855 | G35: 0.848416345 | H35: 0.7712640703 | I35: 7.715227475
A36: Content | B36: 0.7600876824 | C36: 0.6596402151 | D36: 10.04474674 | G36: 0.7474553752 | H36: 0.781422874 | I36: -3.396749882
A37: Total EBITDA Margin | B37: 0.3036151876 | C37: 0.2736838374 | D37: 2.993135018 | G37: 0.3062826972 | H37: 0.3101189869 | I37: -0.3836289663
A39: EBIT
A40: DTT | B40: 1319.79266 | C40: 1405.83243 | D40: -86.03977 | E40: -0.06120200969 | G40: 2601.78775 | H40: 2553.78944 | I40: 47.99831 | J40: 0.01879493636
A41: Radio | B41: 649.25463 | C41: 652.03635 | D41: -2.78172 | E41: -0.00426620387 | G41: 1275.9675 | H41: 1232.4657 | I41: 43.5018 | J41: 0.03529656038
A42: Content | B42: 267.00376 | C42: 195.2641 | D42: 71.73966 | E42: 0.3673981034 | G42: 499.72446 | H42: 769.24461 | I42: -269.52015 | J42: -0.3503698908
A43: Total EBIT | B43: 2236.05105 | C43: 2253.13288 | D43: -17.08183 | E43: -0.007581368215 | G43: 4377.47971 | H43: 4555.49975 | I43: -178.02004 | J43: -0.03907804846
A45: EBIT Margin
A46: DTT | B46: 0.2078068868 | C46: 0.1902258446 | D46: 1.758104222 | G46: 0.209400016 | H46: 0.2023030809 | I46: 0.7096935029
A47: Radio | B47: 0.8454042946 | C47: 0.7748141245 | D47: 7.059017009 | G47: 0.8341607436 | H47: 0.7676879526 | I47: 6.647279098
A48: Content | B48: 0.6513262866 | C48: 0.5237280068 | D48: 12.75982797 | G48: 0.6345175642 | H48: 0.6905373432 | I48: -5.601977892
A49: Total EBIT Margin | B49: 0.2990714833 | C49: 0.2636334623 | D49: 3.543802096 | G49: 0.2990589536 | H49: 0.2991824881 | I49: -0.01235345151
A51: Comparable EBITDA
A52: DTT | B52: 1307.19361 | C52: 1438.71967 | D52: -131.52606 | E52: -0.09141882379 | G52: 2596.83323 | H52: 2613.87664 | I52: -17.04341 | J52: -0.006520357441
A53: Radio | B53: 651.29963 | C53: 654.91994 | D53: -3.62031 | E53: -0.005527866505 | G53: 1297.77347 | H53: 1238.20689 | I53: 59.56658 | J53: 0.04810713014
A54: Content | B54: 311.58925 | C54: 245.93692 | D54: 65.65233 | E54: 0.2669478417 | G54: 588.67044 | H54: 870.48925 | I54: -281.81881 | J54: -0.3237476052
A55: Total comparable EBITDA | B55: 2270.08249 | C55: 2339.57653 | D55: -69.49404 | E55: -0.02970368317 | G55: 4483.27714 | H55: 4722.57278 | I55: -239.29564 | J55: -0.05067060925

Sheet Audiovisual 19vs21
A1: AUDIOVISUAL
A3: Thousand Euro | B3: IFRS | G3: IFRS
B4: 1Q21 | C4: 1Q19 | D4: Var Abs | E4: Var % | G4: 1H21 | H4: 1H19 | I4: Var Abs | J4: Var %
A6: Advertising Revenues
A7: DTT | B7: 461.22645 | C7: 798.45981 | D7: =B7-C7 -> -337.23336 | E7: =D7/C7 -> -0.4223548334 | G7: 887.68835 | H7: 1536.79148 | I7: =G7-H7 -> -649.10313 | J7: =I7/H7 -> -0.4223755392
A8: Radio | B8: 9.414 | C8: 11.17069 | D8: =B8-C8 -> -1.75669 | E8: =D8/C8 -> -0.1572588623 | G8: 18.784 | H8: 23.66071 | I8: =G8-H8 -> -4.87671 | J8: =I8/H8 -> -0.2061100449
A9: Content | B9: 0 | C9: 0 | D9: 0 | E9: n.a. | G9: 0 | H9: 0 | I9: 0 | J9: n.a.
A10: Adjustments intersegment | B10: 0 | C10: -5.638867151e-14 | D10: 5.638867151e-14 | E10: -1 | G10: 0 | H10: -3.637978807e-14 | I10: =G10-H10 -> 3.637978807e-14 | J10: =I10/H10 -> -1
A11: Adjustments intersegment | B11: 470.64045 | C11: 809.6305 | D11: -338.99005 | E11: -0.4186972329 | G11: 906.47235 | H11: 1560.45219 | I11: -653.97984 | J11: -0.4190963646
A13: Other Revenues
A14: DTT | B14: 5889.82707 | C14: 6002.93931 | D14: -113.11224 | E14: -0.01884280919 | G14: 11537.27608 | H14: 12120.82518 | I14: =G14-H14 -> -583.5491 | J14: =I14/H14 -> -0.04814433764
A15: Radio | B15: 758.56723 | C15: 745.36276 | D15: 13.20447 | E15: 0.01771549467 | G15: 1510.85823 | H15: 1661.73448 | I15: -150.87625 | J15: -0.09079443907
A16: Content | B16: 409.93856 | C16: 744.37865 | D16: -334.44009 | E16: -0.4492875904 | G16: 787.566 | H16: 1357.81713 | I16: -570.25113 | J16: -0.4199763852
A17: Adjustments intersegment | B17: -52.32918 | C17: -49.65429 | D17: -2.67489 | E17: 0.05387026982 | G17: -104.65836 | H17: -112.50858 | I17: 7.85022 | J17: -0.06977441187
A18: Total Other Revenues | B18: 7006.00368 | C18: 7443.02643 | D18: -437.02275 | E18: -0.05871573265 | G18: 13731.04195 | H18: 15027.86821 | I18: -1296.82626 | J18: -0.08629475864
A20: Total Revenues
A21: DTT | B21: 6351.05352 | C21: 6801.39912 | D21: -450.3456 | E21: -0.06621367046 | G21: 12424.96443 | H21: 13657.61666 | I21: =G21-H21 -> -1232.65223 | J21: =I21/H21 -> -0.0902538313
A22: Radio | B22: 767.98123 | C22: 756.53345 | D22: 11.44778 | E22: 0.01513188875 | G22: 1529.64223 | H22: 1685.39519 | I22: =G22-H22 -> -155.75296 | J22: -0.09241331702
A23: Content | B23: 409.93856 | C23: 744.37865 | D23: -334.44009 | E23: -0.4492875904 | G23: 787.566 | H23: 1357.81713 | I23: -570.25113 | J23: -0.4199763852
A24: Adjustments intersegment | B24: -52.32918 | C24: -49.65429 | D24: -2.67489 | E24: 0.05387026982 | G24: -104.65836 | H24: -112.50858 | I24: 7.85022 | J24: -0.06977441187
A25: Total Revenues | B25: 7476.64413 | C25: 8252.65693 | D25: -776.0128 | E25: -0.09403187441 | G25: 14637.5143 | H25: 16588.3204 | I25: -1950.8061 | J25: -0.1176011828
A27: EBITDA
A28: DTT | B28: 1307.13383 | C28: 1501.99077 | D28: -194.85694 | E28: -0.1297324484 | G28: 2596.77345 | H28: 2901.11673 | I28: =G28-H28 -> -304.34328 | J28: =I28/H28 -> -0.1049055617
A29: Radio | B29: 651.29963 | C29: 628.97254 | D29: 22.32709 | E29: 0.03549771823 | G29: 1297.77347 | H29: 1277.55922 | I29: 20.21425 | J29: 0.0158225542
A30: Content | B30: 311.58925 | C30: 587.81188 | D30: -276.22263 | E30: -0.4699167189 | G30: 588.67044 | H30: 1072.50198 | I30: -483.83154 | J30: -0.4511241462
A31: Total EBITDA | B31: 2270.02271 | C31: 2718.77519 | D31: -448.75248 | E31: -0.1650568541 | G31: 4483.21736 | H31: 5251.17793 | I31: -767.96057 | J31: -0.1462453911
A33: EBITDA Margin
A34: DTT | B34: 0.205813701 | C34: 0.220835558 | D34: =+(B34-C34)*100 -> -1.502185705 | G34: 0.2089964494 | H34: 0.2124174958 | I34: =+(G34-H34)*100 -> -0.3421046419
A35: Radio | B35: 0.8480671201 | C35: 0.8313876141 | D35: =+(B35-C35)*100 -> 1.667950595 | G35: 0.848416345 | H35: 0.7580176018 | I35: =+(G35-H35)*100 -> 9.039874325
A36: Content | B36: 0.7600876824 | C36: 0.7896678391 | D36: =+(B36-C36)*100 -> -2.958015667 | G36: 0.7474553752 | H36: 0.7898721826 | I36: =+(G36-H36)*100 -> -4.24168074
A37: Total EBITDA Margin | B37: 0.3036151876 | C37: 0.3294424103 | D37: =+(B37-C37)*100 -> -2.582722267 | G37: 0.3062826972 | H37: 0.3165587476 | I37: =+(G37-H37)*100 -> -1.027605037
A39: EBIT
A40: DTT | B40: 1319.79266 | C40: 1466.89713 | D40: -147.10447 | E40: -0.1002827444 | G40: 2601.78775 | H40: 2832.9854 | I40: =G40-H40 -> -231.19765 | J40: =I40/H40 -> -0.0816091922
A41: Radio | B41: 649.25463 | C41: 626.06094 | D41: 23.19369 | E41: 0.03704701654 | G41: 1275.9675 | H41: 1271.75103 | I41: 4.21647 | J41: 0.003315483849
A42: Content | B42: 267.00376 | C42: 503.23972 | D42: -236.23596 | E42: -0.4694302747 | G42: 499.72446 | H42: 918.31487 | I42: -418.59041 | J42: -0.455824493
A43: Total EBIT | B43: 2236.05105 | C43: 2596.19779 | D43: -360.14674 | E43: -0.1387208407 | G43: 4377.47971 | H43: 5023.0513 | I43: -645.57159 | J43: -0.1285217991
A45: EBIT Margin
A46: DTT | B46: 0.2078068868 | C46: 0.2156757902 | D46: =+(B46-C46)*100 -> -0.7868903431 | G46: 0.209400016 | H46: 0.2074289732 | I46: =+(G46-H46)*100 -> 0.1971042775
A47: Radio | B47: 0.8454042946 | C47: 0.827539007 | D47: =+(B47-C47)*100 -> 1.786528755 | G47: 0.8341607436 | H47: 0.754571413 | I47: =+(G47-H47)*100 -> 7.958933058
A48: Content | B48: 0.6513262866 | C48: 0.6760534037 | D48: -2.472711718 | G48: 0.6345175642 | H48: 0.6763170457 | I48: -4.179948149
A49: Total EBIT Margin | B49: 0.2990714833 | C49: 0.3145893271 | D49: -1.551784376 | G49: 0.2990589536 | H49: 0.3028065035 | I49: -0.3747549935
A51: Comparable EBITDA
A52: DTT | B52: 1307.19361 | C52: 1501.99077 | D52: -194.79716 | E52: -0.1296926478 | G52: 2596.83323 | H52: 2901.11673 | I52: =G52-H52 -> -304.2835 | J52: =I52/H52 -> -0.1048849558
A53: Radio | B53: 651.29963 | C53: 628.97254 | D53: 22.32709 | E53: 0.03549771823 | G53: 1297.77347 | H53: 1277.55922 | I53: 20.21425 | J53: 0.0158225542
A54: Content | B54: 311.58925 | C54: 587.81188 | D54: -276.22263 | E54: -0.4699167189 | G54: 588.67044 | H54: 1072.50198 | I54: -483.83154 | J54: -0.4511241462
A55: Total comparable EBITDA | B55: 2270.08249 | C55: 2718.77519 | D55: -448.6927 | E55: -0.1650348663 | G55: 4483.27714 | H55: 5251.17793 | I55: -767.90079 | J55: -0.146234007

Sheet Classified
A1: CLASSIFIED
A3: Thousand Euro | B3: IFRS | G3: IFRS
B4: 1Q21 | C4: 1Q20 | D4: Var Abs | E4: Var % | G4: 1H21 | H4: 1H20 | I4: Var Abs | J4: Var %
A6: Circulation Revenues
A7: Classified | B7: 0 | C7: 0 | D7: 0 | E7: n.a. | G7: 0 | H7: 0 | I7: 0 | J7: n.a.
A8: Total Circulation Revenues | B8: 0 | C8: 0 | D8: 0 | E8: n.a. | G8: 0 | H8: 0 | I8: 0 | J8: n.a.
A10: Advertising Revenues
A11: Classified | B11: 5606.84045 | C11: 6301.57446 | D11: -694.73401 | E11: -0.1102476872 | G11: 11524.0452 | H11: 10176.77164 | I11: 1347.27356 | J11: 0.132387127
A12: Total Advertising Revenues | B12: 5606.84045 | C12: 6301.57446 | D12: -694.73401 | E12: -0.1102476872 | G12: 11524.0452 | H12: 10176.77164 | I12: 1347.27356 | J12: 0.132387127
A14: Other Revenues
A15: Classified | B15: 356.76341 | C15: 351.33073 | D15: 5.43268 | E15: 0.01546315063 | G15: 683.22883 | H15: 630.16903 | I15: 53.0598 | J15: 0.08419931395
A16: Total Other Revenues | B16: 356.76341 | C16: 351.33073 | D16: 5.43268 | E16: 0.01546315063 | G16: 683.22883 | H16: 630.16903 | I16: 53.0598 | J16: 0.08419931395
A18: Total Revenues
A19: Classified | B19: 5963.60386 | C19: 6652.90519 | D19: -689.30133 | E19: -0.1036090716 | G19: 12207.27403 | H19: 10806.94067 | I19: 1400.33336 | J19: 0.1295772229
A20: Total Revenues | B20: 5963.60386 | C20: 6652.90519 | D20: -689.30133 | E20: -0.1036090716 | G20: 12207.27403 | H20: 10806.94067 | I20: 1400.33336 | J20: 0.1295772229
A22: EBITDA
A23: Classified | B23: 1137.55469 | C23: 1627.0456 | D23: -489.49091 | E23: -0.3008464606 | G23: 2358.0895 | H23: 1927.60874 | I23: 430.48076 | J23: 0.2233237228
A24: Total EBITDA | B24: 1137.55469 | C24: 1627.0456 | D24: -489.49091 | E24: -0.3008464606 | G24: 2358.0895 | H24: 1927.60874 | I24: 430.48076 | J24: 0.2233237228
A26: EBITDA Margin
A27: Classified | B27: 0.1907495395 | C27: 0.2445616695 | D27: -5.381212997 | G27: 0.19317085 | H27: 0.1783676619 | I27: 1.480318802
A28: Total EBITDA Margin | B28: 0.1907495395 | C28: 0.2445616695 | D28: -5.381212997 | G28: 0.19317085 | H28: 0.1783676619 | I28: 1.480318802
A30: EBIT
A31: Classified | B31: 752.73213 | C31: 1224.34794 | D31: -471.61581 | E31: -0.3851975362 | G31: 1555.42428 | H31: 1120.92728 | I31: 434.497 | J31: 0.387622826
A32: Total EBIT | B32: 752.73213 | C32: 1224.34794 | D32: -471.61581 | E32: -0.3851975362 | G32: 1555.42428 | H32: 1120.92728 | I32: 434.497 | J32: 0.387622826
A34: EBIT Margin
A35: Classified | B35: 0.1262210146 | C35: 0.184032074 | D35: -5.781105934 | G35: 0.1274178229 | H35: 0.103722905 | I35: 2.369491791
A36: Total EBIT Margin | B36: 0.1262210146 | C36: 0.184032074 | D36: -5.781105934 | G36: 0.1274178229 | H36: 0.103722905 | I36: 2.369491791
A38: Comparable EBITDA
A39: Classified | B39: 1139.12641 | C39: 1696.21712 | D39: -557.09071 | E39: -0.3284312506 | G39: 2358.0895 | H39: 1992.78182 | I39: 365.30768 | J39: 0.1833154419
A40: Total comparable EBITDA | B40: 1139.12641 | C40: 1696.21712 | D40: -557.09071 | E40: -0.3284312506 | G40: 2358.0895 | H40: 1992.78182 | I40: 365.30768 | J40: 0.1833154419

Sheet Classified 19vs21
A1: CLASSIFIED
A3: Thousand Euro | B3: IFRS | G3: IFRS
B4: 1Q21 | C4: 1Q19 | D4: Var Abs | E4: Var % | G4: 1H21 | H4: 1H19 | I4: Var Abs | J4: Var %
A6: Circulation Revenues
A7: Classified | B7: 0 | C7: 0 | D7: =B7-C7 -> 0 | E7: n.a. | G7: 0 | H7: 0 | I7: =G7-H7 -> 0 | J7: n.a.
A8: Total Circulation Revenues | B8: 0 | C8: 0 | D8: =B8-C8 -> 0 | E8: n.a. | G8: 0 | H8: 0 | I8: =G8-H8 -> 0 | J8: n.a.
A10: Advertising Revenues
A11: Classified | B11: 5606.84045 | C11: 6385.19171 | D11: -778.35126 | E11: =D11/C11 -> -0.1218994347 | G11: 11524.0452 | H11: 13232.65708 | I11: =G11-H11 -> -1708.61188 | J11: =I11/H11 -> -0.1291208462
A12: Total Advertising Revenues | B12: 5606.84045 | C12: 6385.19171 | D12: -778.35126 | E12: -0.1218994347 | G12: 11524.0452 | H12: 13232.65708 | I12: -1708.61188 | J12: -0.1291208462
A14: Other Revenues
A15: Classified | B15: 356.76341 | C15: 328.3923 | D15: 28.37111 | E15: 0.08639395625 | G15: 683.22883 | H15: 691.8122 | I15: =G15-H15 -> -8.58337 | J15: =I15/H15 -> -0.012407081
A16: Total Other Revenues | B16: 356.76341 | C16: 328.3923 | D16: 28.37111 | E16: 0.08639395625 | G16: 683.22883 | H16: 691.8122 | I16: -8.58337 | J16: -0.012407081
A18: Total Revenues
A19: Classified | B19: 5963.60386 | C19: 6713.58401 | D19: -749.98015 | E19: -0.1117108461 | G19: 12207.27403 | H19: 13924.46928 | I19: =G19-H19 -> -1717.19525 | J19: =I19/H19 -> -0.1233221328
A20: Total Revenues | B20: 5963.60386 | C20: 6713.58401 | D20: -749.98015 | E20: -0.1117108461 | G20: 12207.27403 | H20: 13924.46928 | I20: -1717.19525 | J20: -0.1233221328
A22: EBITDA
A23: Classified | B23: 1137.55469 | C23: 550.80492 | D23: 586.74977 | E23: 1.065258767 | G23: 2358.0895 | H23: 2330.86469 | I23: =G23-H23 -> 27.22481 | J23: =I23/H23 -> 0.01168013318
A24: Total EBITDA | B24: 1137.55469 | C24: 550.80492 | D24: 586.74977 | E24: 1.065258767 | G24: 2358.0895 | H24: 2330.86469 | I24: 27.22481 | J24: 0.01168013318
A26: EBITDA Margin
A27: Classified | B27: 0.1907495395 | C27: 0.0820433496 | D27: =+(B27-C27)*100 -> 10.87061899 | G27: 0.19317085 | H27: 0.1673934312 | I27: =+(G27-H27)*100 -> 2.577741878
A28: Total EBITDA Margin | B28: 0.1907495395 | C28: 0.0820433496 | D28: =+(B28-C28)*100 -> 10.87061899 | G28: 0.19317085 | H28: 0.1673934312 | I28: =+(G28-H28)*100 -> 2.577741878
A30: EBIT
A31: Classified | B31: 752.73213 | C31: 416.39267 | D31: 336.33946 | E31: 0.8077458712 | G31: 1555.42428 | H31: 1572.46928 | I31: =G31-H31 -> -17.045 | J31: =I31/H31 -> -0.01083963942
A32: Total EBIT | B32: 752.73213 | C32: 416.39267 | D32: 336.33946 | E32: 0.8077458712 | G32: 1555.42428 | H32: 1572.46928 | I32: -17.045 | J32: -0.01083963942
A34: EBIT Margin
A35: Classified | B35: 0.1262210146 | C35: 0.06202241148 | D35: =+(B35-C35)*100 -> 6.419860314 | G35: 0.1274178229 | H35: 0.1129284893 | I35: =+(G35-H35)*100 -> 1.448933357
A36: Total EBIT Margin | B36: 0.1262210146 | C36: 0.06202241148 | D36: =+(B36-C36)*100 -> 6.419860314 | G36: 0.1274178229 | H36: 0.1129284893 | I36: =+(G36-H36)*100 -> 1.448933357
A38: Comparable EBITDA
A39: Classified | B39: 1139.12641 | C39: 1040.92324 | D39: 98.20317 | E39: 0.09434237437 | G39: 2358.0895 | H39: 2852.66353 | I39: =G39-H39 -> -494.57403 | J39: =I39/H39 -> -0.1733727181
A40: Total comparable EBITDA | B40: 1139.12641 | C40: 1040.92324 | D40: 98.20317 | E40: 0.09434237437 | G40: 2358.0895 | H40: 2852.66353 | I40: -494.57403 | J40: -0.1733727181

Sheet Gastronomy & Agencies
A1: GASTRONOMY & AGENCIES
A3: Thousand Euro | B3: IFRS | G3: IFRS
B4: 1Q21 | C4: 1Q20 | D4: Var Abs | E4: Var % | G4: 1H21 | H4: 1H20 | I4: Var Abs | J4: Var %
A6: Circulation Revenues
A7: Gastronomy | B7: 0 | C7: 0 | D7: 0 | E7: n.a. | G7: 0 | H7: 0 | I7: 0 | J7: n.a.
A8: Agencies | B8: 0 | C8: 0 | D8: 0 | E8: n.a. | G8: 0 | H8: 0 | I8: 0 | J8: n.a.
A9: Total Circulation Revenues | B9: 0 | C9: 0 | D9: 0 | E9: 0.8361784663 | G9: 0 | H9: 0 | I9: 0 | J9: 0.2531811182
A11: Advertising Revenues
A12: Gastronomy | B12: 0 | C12: 2.45 | D12: -2.45 | E12: -1 | G12: 133.32678 | H12: 2.45 | I12: 130.87678 | J12: n.r.
A13: Agencies | B13: 0 | C13: 0 | D13: 0 | E13: n.a. | G13: 0 | H13: 0 | I13: 0 | J13: n.a.
A14: Total Advertising Revenues | B14: 0 | C14: 2.45 | D14: -2.45 | E14: -1.564945517 | G14: 133.32678 | H14: 2.45 | I14: 130.87678 | J14: 0.2531811182
A16: Other Revenues
A17: Gastronomy | B17: 348.73472 | C17: 3097.39015 | D17: -2748.65543 | E17: -0.8874101411 | G17: 3659.69298 | H17: 3127.15447 | I17: 532.53851 | J17: 0.1702949167
A18: Agencies | B18: 2572.0361 | C18: 2870.2348 | D18: -298.1987 | E18: -0.1038934863 | G18: 5777.07305 | H18: 4271.16076 | I18: 1505.91229 | J18: 0.3525768227
A19: Total Other Revenues | B19: 2920.77082 | C19: 5967.62495 | D19: -3046.85413 | E19: -1.564945517 | G19: 9436.76603 | H19: 7398.31523 | I19: 2038.4508 | J19: 0.2531811182
A21: Total Revenues
A22: Gastronomy | B22: 348.73472 | C22: 3099.84015 | D22: -2751.10543 | E22: -0.887499128 | G22: 3793.01976 | H22: 3129.60447 | I22: 663.41529 | J22: 0.2119805542
A23: Agencies | B23: 2572.0361 | C23: 2870.2348 | D23: -298.1987 | E23: -0.1038934863 | G23: 5777.07305 | H23: 4271.16076 | I23: 1505.91229 | J23: 0.3525768227
A24: Total Revenues | B24: 2920.77082 | C24: 5970.07495 | D24: -3049.30413 | E24: -0.5107647987 | G24: 9570.09281 | H24: 7400.76523 | I24: 2169.32758 | J24: 0.2931220641
A26: EBITDA
A27: Gastronomy | B27: -345.43591 | C27: 951.77353 | D27: -1297.20944 | E27: -1.362939186 | G27: 819.65155 | H27: 624.8525 | I27: 194.79905 | J27: 0.3117520535
A28: Agencies | B28: -297.78686 | C28: 165.4409 | D28: -463.22776 | E28: -2.799959139 | G28: 10.45259 | H28: 1.19139 | I28: 9.2612 | J28: n.r.
A29: Total EBITDA | B29: -643.22277 | C29: 1117.21443 | D29: -1760.4372 | E29: -1.575737972 | G29: 830.10414 | H29: 626.04389 | I29: 204.06025 | J29: 0.3259519872
A31: EBITDA Margin
A32: Gastronomy | B32: -0.9905406321 | C32: 0.3070395517 | D32: -129.7580184 | G32: 0.2160947218 | H32: 0.1996586169 | I32: 1.643610492
A33: Agencies | B33: -0.1157786471 | C33: 0.05764019724 | D33: -17.34188444 | G33: 0.001809322802 | H33: 0.0002789382247 | I33: 0.1530384578
A34: Total EBITDA Margin | B34: -0.220223636 | C34: 0.1871357461 | D34: -40.73593821 | G34: 0.08673940331 | H34: 0.08459177809 | I34: 0.2147625228
A36: EBIT
A37: Gastronomy | B37: -359.20221 | C37: 948.67848 | D37: -1307.88069 | E37: -1.378634298 | G37: 791.86221 | H37: 618.66402 | I37: 173.19819 | J37: 0.2799551686
A38: Agencies | B38: -527.14004 | C38: 145.81172 | D38: -672.95176 | E38: -4.615210355 | G38: -447.44467 | H38: -459.07619 | I38: 11.63152 | J38: 0.02533679649
A39: Total EBIT | B39: -886.34225 | C39: 1094.4902 | D39: -1980.83245 | E39: -1.809822007 | G39: 344.41754 | H39: 159.58783 | I39: 184.82971 | J39: n.r.
A41: EBIT Margin
A42: Gastronomy | B42: -0.9905406321 | C42: 0.3070395517 | D42: -129.7580184 | G42: 0.2160947218 | H42: 0.1996586169 | I42: 1.643610492
A43: Agencies | B43: -0.1157786471 | C43: 0.05764019724 | D43: -17.34188444 | G43: 0.001809322802 | H43: 0.0002789382247 | I43: 0.1530384578
A44: Total EBIT Margin | B44: -0.3034617588 | C44: 0.1833293902 | G44: 0.0359889446 | H44: 0.02156369308
A46: Comparable EBITDA
A47: Gastronomy | B47: -342.44138 | C47: 952.57682 | D47: -1295.0182 | E47: -1.359489516 | G47: 819.65155 | H47: 625.65579 | I47: 193.99576 | J47: 0.3100678729
A48: Agencies | B48: -296.69172 | C48: 178.7413 | D48: -475.43302 | E48: -2.659894607 | G48: 10.45259 | H48: 36.74179 | I48: -26.2892 | J48: -0.7155122274
A49: Total comparable EBITDA | B49: -639.1331 | C49: 1131.31812 | D49: -1770.45122 | E49: -1.564945517 | G49: 830.10414 | H49: 662.39758 | I49: 167.70656 | J49: 0.2531811182

Sheet Gastronomy & Agencies 19vs21
A1: GASTRONOMY & AGENCIES
A3: Thousand Euro | B3: IFRS | G3: IFRS
B4: 1Q21 | C4: 1Q19 | D4: Var Abs | E4: Var % | G4: 1H21 | H4: 1H19 | I4: Var Abs | J4: Var %
A6: Circulation Revenues
A7: Gastronomy | B7: 0 | C7: 0 | D7: =B7-C7 -> 0 | E7: n.a. | G7: 0 | H7: 0 | I7: =G7-H7 -> 0 | J7: n.a.
A8: Agencies | B8: 0 | C8: 0 | D8: =B8-C8 -> 0 | E8: n.a. | G8: 0 | H8: 0 | I8: 0 | J8: n.a.
A9: Total Circulation Revenues | B9: 0 | C9: 0 | D9: 0 | E9: n.a. | G9: 0 | H9: 0 | I9: 0 | J9: n.a.
A11: Advertising Revenues
A12: Gastronomy | B12: 0 | C12: 0 | D12: 0 | E12: n.a. | G12: 133.32678 | H12: 112.12953 | I12: =G12-H12 -> 21.19725 | J12: n.a.
A13: Agencies | B13: 0 | C13: 0 | D13: 0 | E13: n.a. | G13: 0 | H13: 0 | I13: 0 | J13: n.a.
A14: Total Advertising Revenues | B14: 0 | C14: 0 | D14: 0 | E14: n.a. | G14: 133.32678 | H14: 112.12953 | I14: 21.19725 | J14: n.a.
A16: Other Revenues
A17: Gastronomy | B17: 348.73472 | C17: 2779.86074 | D17: -2431.12602 | E17: =D17/C17 -> -0.8745495719 | G17: 3659.69298 | H17: 4286.39053 | I17: =G17-H17 -> -626.69755 | J17: =I17/H17 -> -0.1462063584
A18: Agencies | B18: 2572.0361 | C18: 75.90868 | D18: 2496.12742 | E18: 32.88329372 | G18: 5777.07305 | H18: 317.07324 | I18: 5459.99981 | J18: 17.21999564
A19: Total Other Revenues | B19: 2920.77082 | C19: 2855.76942 | D19: 65.0014 | E19: 0.02276143149 | G19: 9436.76603 | H19: 4603.46377 | I19: 4833.30226 | J19: 1.049927294
A21: Total Revenues
A22: Gastronomy | B22: 348.73472 | C22: 2779.86074 | D22: -2431.12602 | E22: -0.8745495719 | G22: 3793.01976 | H22: 4398.52006 | I22: =G22-H22 -> -605.5003 | J22: =I22/H22 -> -0.1376600065
A23: Agencies | B23: 2572.0361 | C23: 75.90868 | D23: 2496.12742 | E23: 32.88329372 | G23: 5777.07305 | H23: 317.07324 | I23: 5459.99981 | J23: 17.21999564
A24: Total Revenues | B24: 2920.77082 | C24: 2855.76942 | D24: 65.0014 | E24: 0.02276143149 | G24: 9570.09281 | H24: 4715.5933 | I24: 4854.49951 | J24: 1.029456783
A26: EBITDA
A27: Gastronomy | B27: -345.43591 | C27: 744.40312 | D27: -1089.83903 | E27: -1.464044146 | G27: 819.65155 | H27: 749.333 | I27: =G27-H27 -> 70.31855 | J27: =I27/H27 -> 0.09384152306
A28: Agencies | B28: -297.78686 | C28: -129.26611 | D28: -168.52075 | E28: 1.303673097 | G28: 10.45259 | H28: -220.34468 | I28: 230.79727 | J28: -1.047437451
A29: Total EBITDA | B29: -643.22277 | C29: 615.13701 | D29: -1258.35978 | E29: -2.045657731 | G29: 830.10414 | H29: 528.98832 | I29: 301.11582 | J29: 0.5692296193
A31: EBITDA Margin
A32: Gastronomy | B32: -0.9905406321 | C32: 0.2677843207 | D32: =+(B32-C32)*100 -> -125.8324953 | G32: 0.2160947218 | H32: 0.1703602552 | I32: =+(G32-H32)*100 -> 4.573446663
A33: Agencies | B33: -0.1157786471 | C33: -1.702916057 | D33: =+(B33-C33)*100 -> 158.7137409 | G33: 0.001809322802 | H33: -0.6949330697 | I33: =+(G33-H33)*100 -> 69.67423925
A34: Total EBITDA Margin | B34: -0.220223636 | C34: 0.2154014976 | D34: =+(B34-C34)*100 -> -43.56251337 | G34: 0.08673940331 | H34: 0.1121785291 | I34: =+(G34-H34)*100 -> -2.543912574
A36: EBIT
A37: Gastronomy | B37: -359.20221 | C37: 740.98204 | D37: -1100.18425 | E37: -1.484765069 | G37: 791.86221 | H37: 742.40045 | I37: =G37-H37 -> 49.46176 | J37: =I37/H37 -> 0.06662409755
A38: Agencies | B38: -527.14004 | C38: -130.7762 | D38: -396.36384 | E38: 3.030856073 | G38: -447.44467 | H38: -223.97423 | I38: -223.47044 | J38: 0.9977506787
A39: Total EBIT | B39: -886.34225 | C39: 610.20584 | D39: -1496.54809 | E39: -2.452529936 | G39: 344.41754 | H39: 518.42622 | I39: -174.00868 | J39: -0.3356479153
A41: EBIT Margin
A42: Gastronomy | B42: -0.9905406321 | C42: 0.2677843207 | D42: =+(B42-C42)*100 -> -125.8324953 | G42: 0.2160947218 | H42: 0.1703602552 | I42: =+(G42-H42)*100 -> 4.573446663
A43: Agencies | B43: -0.1157786471 | C43: -1.702916057 | D43: =+(B43-C43)*100 -> 158.7137409 | G43: 0.001809322802 | H43: -0.6949330697 | I43: =+(G43-H43)*100 -> 69.67423925
A44: Total EBIT Margin | B44: -0.3034617588 | C44: 0.2136747581 | D44: =+(B44-C44)*100 -> -51.71365169 | G44: 0.0359889446 | H44: 0.1099387048 | I44: =+(G44-H44)*100 -> -7.394976025
A46: Comparable EBITDA
A47: Gastronomy | B47: -342.44138 | C47: 745.39256 | D47: -1087.83394 | E47: -1.459410783 | G47: 819.65155 | H47: 758.16013 | I47: =G47-H47 -> 61.49142 | J47: =I47/H47 -> 0.08110611145
A48: Agencies | B48: -296.69172 | C48: -129.26611 | D48: -167.42561 | E48: 1.295201117 | G48: 10.45259 | H48: -220.31398 | I48: 230.76657 | J48: -1.047444061
A49: Total comparable EBITDA | B49: -639.1331 | C49: 616.12645 | D49: -1255.25955 | E49: -2.037340793 | G49: 830.10414 | H49: 537.84615 | I49: 292.25799 | J49: 0.5433858549
